[Event "Titled Tuesday Blitz March 15 Early 2022"]
[White "Wong, Yinn Long"]
[Black "Slugin, Sergey"]
[WhiteFideId "5707684"]
[BlackFideId "4122569"]
[WhiteElo "2055"]
[BlackElo "2358"]
[Result "1-0"]
[Round "05"]
[TimeControl "180+1"]
[Date "2022.03.15"]
[WhiteClock "0:00:39"]
[BlackClock "0:00:13"]

1. Nf3 {[%clk 0:03:00]}  Nf6 {[%clk 0:02:53]} 2. b3 {[%clk 0:03:00]}  g6 {[%clk 0:02:53]} 3. Bb2 {[%clk 0:03:01]}  Bg7 {[%clk 0:02:54]} 4. e3 {[%clk 0:03:02]}  d5 {[%clk 0:02:54]} 5. d4 {[%clk 0:03:02]}  O-O {[%clk 0:02:53]} 6. c4 {[%clk 0:03:03]}  dxc4 {[%clk 0:02:53]} 7. Bxc4 {[%clk 0:03:01]}  Nc6 {[%clk 0:02:50]} 8. O-O {[%clk 0:03:00]}  e5 {[%clk 0:02:32]} 9. dxe5 {[%clk 0:02:56]}  Ng4 {[%clk 0:02:29]} 10. Nc3 {[%clk 0:02:51]}  Ngxe5 {[%clk 0:02:24]} 11. Be2 {[%clk 0:02:50]}  Bf5 {[%clk 0:02:12]} 12. Nxe5 {[%clk 0:02:36]}  Nxe5 {[%clk 0:02:10]} 13. e4 {[%clk 0:02:26]}  Be6 {[%clk 0:02:02]} 14. Na4 {[%clk 0:02:08]}  b6 {[%clk 0:01:50]} 15. f4 {[%clk 0:02:02]}  Nc6 {[%clk 0:01:36]} 16. e5 {[%clk 0:02:02]}  Qxd1 {[%clk 0:01:29]} 17. Rfxd1 {[%clk 0:01:53]}  Rad8 {[%clk 0:01:14]} 18. Bf3 {[%clk 0:01:43]}  Rxd1+ {[%clk 0:01:08]} 19. Rxd1 {[%clk 0:01:43]}  Rd8 {[%clk 0:01:08]} 20. Rxd8+ {[%clk 0:01:31]}  Nxd8 {[%clk 0:01:09]} 21. Nc3 {[%clk 0:01:32]}  f6 {[%clk 0:01:06]} 22. Nb5 {[%clk 0:01:29]}  fxe5 {[%clk 0:00:52]} 23. fxe5 {[%clk 0:01:30]}  c6 {[%clk 0:00:51]} 24. Nxa7 {[%clk 0:01:28]}  Bd7 {[%clk 0:00:51]} 25. b4 {[%clk 0:01:13]}  Kf7 {[%clk 0:00:48]} 26. Bd4 {[%clk 0:01:10]}  b5 {[%clk 0:00:40]} 27. Kf2 {[%clk 0:01:09]}  Ne6 {[%clk 0:00:34]} 28. Bc3 {[%clk 0:01:01]}  c5 {[%clk 0:00:34]} 29. bxc5 {[%clk 0:00:50]}  Nxc5 {[%clk 0:00:35]} 30. Nc6 {[%clk 0:00:50]}  Bxc6 {[%clk 0:00:25]} 31. Bxc6 {[%clk 0:00:50]}  b4 {[%clk 0:00:25]} 32. e6+ {[%clk 0:00:41]}  Kf8 {[%clk 0:00:13]} 33. Bxg7+ {[%clk 0:00:38]}  Kxg7 {[%clk 0:00:13]} 34. e7 {[%clk 0:00:39]} 1-0


[Site "https://www.chess.com"]

[Event "Titled Tuesday Blitz March 15 Early 2022"]
[White "volunteers1998"]
[Black "Pajeken, Jakob Leon"]
[BlackFideId "12942839"]
[WhiteElo "2276"]
[BlackElo "2351"]
[Result "0-1"]
[Round "05"]
[TimeControl "180+1"]
[Date "2022.03.15"]
[WhiteClock "0:00:32"]
[BlackClock "0:00:17"]

1. e4 {[%clk 0:02:56]}  e5 {[%clk 0:02:59]} 2. Nf3 {[%clk 0:02:55]}  Nc6 {[%clk 0:02:59]} 3. Bc4 {[%clk 0:02:51]}  Bc5 {[%clk 0:02:59]} 4. b4 {[%clk 0:02:49]}  Bxb4 {[%clk 0:02:58]} 5. c3 {[%clk 0:02:47]}  Be7 {[%clk 0:02:58]} 6. d4 {[%clk 0:02:46]}  Na5 {[%clk 0:02:58]} 7. Nxe5 {[%clk 0:02:43]}  Nxc4 {[%clk 0:02:58]} 8. Nxc4 {[%clk 0:02:42]}  d5 {[%clk 0:02:59]} 9. exd5 {[%clk 0:02:38]}  Qxd5 {[%clk 0:02:58]} 10. Ne3 {[%clk 0:02:34]}  Qa5 {[%clk 0:02:58]} 11. O-O {[%clk 0:02:32]}  Nf6 {[%clk 0:02:58]} 12. Re1 {[%clk 0:02:28]}  O-O {[%clk 0:02:47]} 13. Bd2 {[%clk 0:02:20]}  Qa6 {[%clk 0:02:42]} 14. c4 {[%clk 0:02:18]}  Rd8 {[%clk 0:02:29]} 15. d5 {[%clk 0:02:13]}  b5 {[%clk 0:02:16]} 16. cxb5 {[%clk 0:02:11]}  Qxb5 {[%clk 0:02:10]} 17. Nc3 {[%clk 0:02:11]}  Qd7 {[%clk 0:02:09]} 18. Rb1 {[%clk 0:02:03]}  c6 {[%clk 0:02:07]} 19. Qe2 {[%clk 0:01:59]}  cxd5 {[%clk 0:01:59]} 20. Nexd5 {[%clk 0:01:54]}  Nxd5 {[%clk 0:01:56]} 21. Nxd5 {[%clk 0:01:54]}  Qxd5 {[%clk 0:01:56]} 22. Qxe7 {[%clk 0:01:51]}  Be6 {[%clk 0:01:54]} 23. Bc3 {[%clk 0:01:45]}  Rdc8 {[%clk 0:01:37]} 24. Ba1 {[%clk 0:01:40]}  h6 {[%clk 0:01:23]} 25. Rb7 {[%clk 0:01:35]}  Re8 {[%clk 0:01:12]} 26. Qb4 {[%clk 0:01:32]}  a5 {[%clk 0:01:02]} 27. Qb2 {[%clk 0:01:24]}  Qg5 {[%clk 0:00:56]} 28. Rc7 {[%clk 0:01:04]}  Bd5 {[%clk 0:00:44]} 29. Rxe8+ {[%clk 0:01:01]}  Rxe8 {[%clk 0:00:45]} 30. f4 {[%clk 0:00:56]}  Qg4 {[%clk 0:00:38]} 31. h3 {[%clk 0:00:47]}  Qg3 {[%clk 0:00:35]} 32. Rc1 {[%clk 0:00:44]}  Bxg2 {[%clk 0:00:20]} 33. Qxg2 {[%clk 0:00:34]}  Qe3+ {[%clk 0:00:19]} 34. Kh1 {[%clk 0:00:33]}  Qxc1+ {[%clk 0:00:19]} 35. Qg1 {[%clk 0:00:32]}  Re1 {[%clk 0:00:17]} 0-1


[Site "https://www.chess.com"]

[Event "Titled Tuesday Blitz March 15 Early 2022"]
[White "Agrest, Evgenij"]
[Black "Samadov, Read"]
[WhiteFideId "1705024"]
[BlackFideId "13417444"]
[WhiteElo "2574"]
[BlackElo "2084"]
[Result "0-1"]
[Round "06"]
[TimeControl "180+1"]
[Date "2022.03.15"]
[WhiteClock "0:00:04"]
[BlackClock "0:00:15"]

1. d4 {[%clk 0:02:25]}  Nf6 {[%clk 0:02:59]} 2. Nc3 {[%clk 0:02:23]}  d5 {[%clk 0:02:59]} 3. Bf4 {[%clk 0:02:23]}  c5 {[%clk 0:02:58]} 4. e3 {[%clk 0:02:19]}  a6 {[%clk 0:02:48]} 5. Nf3 {[%clk 0:02:16]}  cxd4 {[%clk 0:02:38]} 6. exd4 {[%clk 0:02:14]}  Nc6 {[%clk 0:02:39]} 7. Ne5 {[%clk 0:02:14]}  Bd7 {[%clk 0:02:34]} 8. Be2 {[%clk 0:02:10]}  e6 {[%clk 0:02:29]} 9. O-O {[%clk 0:02:08]}  Bb4 {[%clk 0:02:25]} 10. a3 {[%clk 0:02:02]}  Ba5 {[%clk 0:02:17]} 11. Bf3 {[%clk 0:01:53]}  O-O {[%clk 0:02:13]} 12. Ne2 {[%clk 0:01:52]}  Bc7 {[%clk 0:02:11]} 13. Bg3 {[%clk 0:01:45]}  Nxe5 {[%clk 0:02:07]} 14. dxe5 {[%clk 0:01:41]}  Ne4 {[%clk 0:02:06]} 15. Bxe4 {[%clk 0:01:37]}  dxe4 {[%clk 0:02:06]} 16. Nc3 {[%clk 0:01:37]}  Bc6 {[%clk 0:02:03]} 17. Qe2 {[%clk 0:01:37]}  Qg5 {[%clk 0:01:48]} 18. Nxe4 {[%clk 0:01:29]}  Qg6 {[%clk 0:01:48]} 19. Nd6 {[%clk 0:01:23]}  h5 {[%clk 0:01:41]} 20. h4 {[%clk 0:01:17]}  Rad8 {[%clk 0:01:21]} 21. Qd3 {[%clk 0:00:46]}  f5 {[%clk 0:01:12]} 22. f4 {[%clk 0:00:38]}  Bxd6 {[%clk 0:00:34]} 23. exd6 {[%clk 0:00:36]}  Be4 {[%clk 0:00:35]} 24. Qe3 {[%clk 0:00:35]}  Rxd6 {[%clk 0:00:35]} 25. Rf2 {[%clk 0:00:30]}  Rfd8 {[%clk 0:00:35]} 26. Kh2 {[%clk 0:00:29]}  Kh7 {[%clk 0:00:34]} 27. Re1 {[%clk 0:00:24]}  Qg4 {[%clk 0:00:34]} 28. Qc3 {[%clk 0:00:20]}  Rd1 {[%clk 0:00:32]} 29. Rxd1 {[%clk 0:00:19]}  Rxd1 {[%clk 0:00:33]} 30. Qe5 {[%clk 0:00:17]}  Rc1 {[%clk 0:00:22]} 31. Qxe6 {[%clk 0:00:16]}  Qd1 {[%clk 0:00:20]} 32. Kh3 {[%clk 0:00:13]}  Qh1+ {[%clk 0:00:18]} 33. Bh2 {[%clk 0:00:13]}  Rf1 {[%clk 0:00:16]} 34. Rd2 {[%clk 0:00:09]}  Rf3+ {[%clk 0:00:14]} 35. gxf3 {[%clk 0:00:04]}  Qxf3+ {[%clk 0:00:15]} 36. Bg3 {[%clk 0:00:04]}  Qf1+ {[%clk 0:00:15]} 0-1


[Site "https://www.chess.com"]

[Event "Titled Tuesday Blitz March 15 Early 2022"]
[White "Alinasab, Mobina"]
[Black "Weishaeutel, Moritz"]
[WhiteFideId "12528897"]
[BlackFideId "12967300"]
[WhiteElo "2052"]
[BlackElo "2002"]
[Result "1-0"]
[Round "06"]
[TimeControl "180+1"]
[Date "2022.03.15"]
[WhiteClock "0:00:18"]
[BlackClock "0:00:23"]

1. e4 {[%clk 0:02:49]}  e5 {[%clk 0:02:59]} 2. Nf3 {[%clk 0:02:47]}  Nf6 {[%clk 0:03:00]} 3. Nxe5 {[%clk 0:02:47]}  Nc6 {[%clk 0:03:00]} 4. Nf3 {[%clk 0:02:48]}  Nxe4 {[%clk 0:03:00]} 5. d4 {[%clk 0:02:47]}  d5 {[%clk 0:03:00]} 6. Bd3 {[%clk 0:02:47]}  Bd6 {[%clk 0:02:59]} 7. O-O {[%clk 0:02:47]}  Bg4 {[%clk 0:02:52]} 8. c3 {[%clk 0:02:47]}  Qd7 {[%clk 0:02:48]} 9. Nbd2 {[%clk 0:02:46]}  Nxd2 {[%clk 0:02:43]} 10. Bxd2 {[%clk 0:02:46]}  O-O-O {[%clk 0:02:37]} 11. b4 {[%clk 0:02:46]}  f6 {[%clk 0:02:30]} 12. a4 {[%clk 0:02:44]}  h5 {[%clk 0:02:29]} 13. a5 {[%clk 0:02:43]}  h4 {[%clk 0:02:25]} 14. b5 {[%clk 0:02:40]}  Ne7 {[%clk 0:02:23]} 15. b6 {[%clk 0:02:30]}  a6 {[%clk 0:02:15]} 16. Qe2 {[%clk 0:02:26]}  h3 {[%clk 0:02:07]} 17. g3 {[%clk 0:02:15]}  c6 {[%clk 0:01:46]} 18. c4 {[%clk 0:02:02]}  Nf5 {[%clk 0:01:42]} 19. Be3 {[%clk 0:01:34]}  Rde8 {[%clk 0:01:39]} 20. cxd5 {[%clk 0:01:02]}  Nxd4 {[%clk 0:01:30]} 21. Nxd4 {[%clk 0:01:03]}  Bxe2 {[%clk 0:01:27]} 22. dxc6 {[%clk 0:00:49]}  Bxf1 {[%clk 0:01:28]} 23. cxd7+ {[%clk 0:00:46]}  Kxd7 {[%clk 0:01:28]} 24. Kxf1 {[%clk 0:00:45]}  Re5 {[%clk 0:01:24]} 25. Bf5+ {[%clk 0:00:35]}  Ke7 {[%clk 0:01:25]} 26. Bg4 {[%clk 0:00:32]}  Bb4 {[%clk 0:01:23]} 27. Bf3 {[%clk 0:00:25]}  Rb8 {[%clk 0:01:17]} 28. Bxb7 {[%clk 0:00:21]}  Rxb7 {[%clk 0:00:36]} 29. Nc6+ {[%clk 0:00:20]}  Kd6 {[%clk 0:00:37]} 30. Nxb4 {[%clk 0:00:20]}  Rb5 {[%clk 0:00:38]} 31. Nxa6 {[%clk 0:00:18]}  Kc6 {[%clk 0:00:30]} 32. Nc7 {[%clk 0:00:18]}  Rb2 {[%clk 0:00:30]} 33. a6 {[%clk 0:00:18]}  R7xb6 {[%clk 0:00:23]} 34. Bxb6 {[%clk 0:00:18]}  Kxb6 {[%clk 0:00:23]} 35. a7 {[%clk 0:00:18]}  Ra2 {[%clk 0:00:23]} 36. Rxa2 {[%clk 0:00:18]} 1-0


[Site "https://www.chess.com"]

[Event "Titled Tuesday Blitz March 15 Early 2022"]
[White "Bintang, Rasyid A. Hidayat"]
[Black "Secer, Ata"]
[WhiteFideId "7105355"]
[BlackFideId "6303293"]
[WhiteElo "2359"]
[BlackElo "2282"]
[Result "0-1"]
[Round "06"]
[TimeControl "180+1"]
[Date "2022.03.15"]
[WhiteClock "0:00:47"]
[BlackClock "0:00:14"]

1. d4 {[%clk 0:02:56]}  d5 {[%clk 0:02:59]} 2. Bf4 {[%clk 0:02:55]}  c5 {[%clk 0:02:59]} 3. e3 {[%clk 0:02:56]}  Nc6 {[%clk 0:02:59]} 4. Nc3 {[%clk 0:02:54]}  cxd4 {[%clk 0:02:52]} 5. exd4 {[%clk 0:02:54]}  Bf5 {[%clk 0:02:50]} 6. Nf3 {[%clk 0:02:51]}  e6 {[%clk 0:02:50]} 7. Bd3 {[%clk 0:02:51]}  Bxd3 {[%clk 0:02:49]} 8. Qxd3 {[%clk 0:02:52]}  Bd6 {[%clk 0:02:49]} 9. Bxd6 {[%clk 0:02:50]}  Qxd6 {[%clk 0:02:50]} 10. Ne2 {[%clk 0:02:50]}  Nf6 {[%clk 0:02:49]} 11. O-O {[%clk 0:02:48]}  O-O {[%clk 0:02:48]} 12. Ng3 {[%clk 0:02:47]}  Rac8 {[%clk 0:02:48]} 13. c3 {[%clk 0:02:47]}  a6 {[%clk 0:02:44]} 14. Rfe1 {[%clk 0:02:47]}  Qc7 {[%clk 0:02:43]} 15. Ne5 {[%clk 0:02:45]}  Nxe5 {[%clk 0:02:43]} 16. dxe5 {[%clk 0:02:45]}  Nd7 {[%clk 0:02:43]} 17. Qe3 {[%clk 0:02:42]}  b5 {[%clk 0:02:33]} 18. Qg5 {[%clk 0:02:41]}  h6 {[%clk 0:02:16]} 19. Qg4 {[%clk 0:02:41]}  Nxe5 {[%clk 0:02:11]} 20. Qd4 {[%clk 0:02:33]}  f6 {[%clk 0:01:53]} 21. f4 {[%clk 0:02:32]}  Nc6 {[%clk 0:01:52]} 22. Qd3 {[%clk 0:02:27]}  Qf7 {[%clk 0:01:11]} 23. a4 {[%clk 0:02:20]}  Rb8 {[%clk 0:00:58]} 24. axb5 {[%clk 0:02:18]}  axb5 {[%clk 0:00:58]} 25. Ra6 {[%clk 0:02:15]}  Rfc8 {[%clk 0:00:58]} 26. Rd1 {[%clk 0:02:06]}  b4 {[%clk 0:00:55]} 27. f5 {[%clk 0:02:04]}  e5 {[%clk 0:00:41]} 28. Qxd5 {[%clk 0:02:03]}  Qxd5 {[%clk 0:00:38]} 29. Rxd5 {[%clk 0:02:04]}  bxc3 {[%clk 0:00:39]} 30. bxc3 {[%clk 0:02:04]}  Rb2 {[%clk 0:00:29]} 31. Rc5 {[%clk 0:01:58]}  Rd8 {[%clk 0:00:20]} 32. h4 {[%clk 0:01:09]}  Rdd2 {[%clk 0:00:17]} 33. Nh5 {[%clk 0:00:58]}  Rxg2+ {[%clk 0:00:17]} 34. Kf1 {[%clk 0:00:58]}  Ne7 {[%clk 0:00:14]} 35. Ra8+ {[%clk 0:00:55]}  Kh7 {[%clk 0:00:14]} 36. Nxf6+ {[%clk 0:00:52]}  gxf6 {[%clk 0:00:12]} 37. Ra7 {[%clk 0:00:53]}  Rbf2+ {[%clk 0:00:13]} 38. Ke1 {[%clk 0:00:53]}  Rxf5 {[%clk 0:00:13]} 39. Rxe7+ {[%clk 0:00:49]}  Kg6 {[%clk 0:00:14]} 40. Rcc7 {[%clk 0:00:49]}  Kh5 {[%clk 0:00:14]} 41. c4 {[%clk 0:00:48]}  Rff2 {[%clk 0:00:14]} 42. c5 {[%clk 0:00:47]}  Ra2 {[%clk 0:00:14]} 43. Kf1 {[%clk 0:00:47]}  Rgc2 {[%clk 0:00:14]} 0-1


[Site "https://www.chess.com"]

[Event "Titled Tuesday Blitz March 15 Early 2022"]
[White "Bluebaum, Matthias"]
[Black "Gaehwiler, Gabriel"]
[WhiteFideId "24651516"]
[BlackFideId "1314530"]
[WhiteElo "2550"]
[BlackElo "2383"]
[Result "1-0"]
[Round "06"]
[TimeControl "180+1"]
[Date "2022.03.15"]
[WhiteClock "0:00:15"]
[BlackClock "0:00:02"]

1. b3 {[%clk 0:03:00]}  Nf6 {[%clk 0:02:57]} 2. Bb2 {[%clk 0:03:01]}  g6 {[%clk 0:02:58]} 3. Nf3 {[%clk 0:03:01]}  Bg7 {[%clk 0:02:58]} 4. g3 {[%clk 0:03:02]}  b6 {[%clk 0:02:54]} 5. Bg2 {[%clk 0:03:02]}  Bb7 {[%clk 0:02:54]} 6. c4 {[%clk 0:03:03]}  O-O {[%clk 0:02:52]} 7. O-O {[%clk 0:03:03]}  c5 {[%clk 0:02:51]} 8. d4 {[%clk 0:03:03]}  cxd4 {[%clk 0:02:46]} 9. Qxd4 {[%clk 0:03:04]}  Nc6 {[%clk 0:02:37]} 10. Qc3 {[%clk 0:03:04]}  d5 {[%clk 0:02:34]} 11. cxd5 {[%clk 0:02:27]}  Qxd5 {[%clk 0:02:33]} 12. Ne5 {[%clk 0:02:24]}  Nd4 {[%clk 0:01:58]} 13. Bxd5 {[%clk 0:02:07]}  Nxe2+ {[%clk 0:01:57]} 14. Kh1 {[%clk 0:01:45]}  Bxd5+ {[%clk 0:01:55]} 15. Qf3 {[%clk 0:01:46]}  Bxf3+ {[%clk 0:01:39]} 16. Nxf3 {[%clk 0:01:47]}  Ne4 {[%clk 0:01:39]} 17. Bxg7 {[%clk 0:01:43]}  Kxg7 {[%clk 0:01:40]} 18. Re1 {[%clk 0:01:41]}  N2c3 {[%clk 0:01:38]} 19. Nxc3 {[%clk 0:01:39]}  Nxc3 {[%clk 0:01:39]} 20. Rxe7 {[%clk 0:01:39]}  Rfe8 {[%clk 0:01:39]} 21. Rb7 {[%clk 0:01:23]}  Re2 {[%clk 0:01:07]} 22. Kg1 {[%clk 0:01:23]}  h6 {[%clk 0:00:46]} 23. a4 {[%clk 0:01:19]}  Ne4 {[%clk 0:00:42]} 24. b4 {[%clk 0:00:53]}  Rxf2 {[%clk 0:00:38]} 25. Ne5 {[%clk 0:00:51]}  Rf5 {[%clk 0:00:37]} 26. Rf1 {[%clk 0:00:47]}  Rxe5 {[%clk 0:00:24]} 27. Rfxf7+ {[%clk 0:00:47]}  Kg8 {[%clk 0:00:23]} 28. Rg7+ {[%clk 0:00:46]}  Kh8 {[%clk 0:00:23]} 29. Rh7+ {[%clk 0:00:46]}  Kg8 {[%clk 0:00:23]} 30. h4 {[%clk 0:00:25]}  Nd6 {[%clk 0:00:18]} 31. Rbg7+ {[%clk 0:00:23]}  Kf8 {[%clk 0:00:19]} 32. Rd7 {[%clk 0:00:24]}  Kg8 {[%clk 0:00:14]} 33. Rdg7+ {[%clk 0:00:17]}  Kf8 {[%clk 0:00:14]} 34. Rxg6 {[%clk 0:00:18]}  Nf7 {[%clk 0:00:10]} 35. Rf6 {[%clk 0:00:18]}  Re7 {[%clk 0:00:08]} 36. Rh8+ {[%clk 0:00:16]}  Kg7 {[%clk 0:00:08]} 37. Rxf7+ {[%clk 0:00:17]}  Kxf7 {[%clk 0:00:05]} 38. Rxa8 {[%clk 0:00:17]}  Kf6 {[%clk 0:00:06]} 39. Kf2 {[%clk 0:00:17]}  Kf5 {[%clk 0:00:06]} 40. b5 {[%clk 0:00:17]}  Ke4 {[%clk 0:00:06]} 41. Ke2 {[%clk 0:00:16]}  Kd4+ {[%clk 0:00:06]} 42. Kf3 {[%clk 0:00:16]}  Kc4 {[%clk 0:00:06]} 43. Rf8 {[%clk 0:00:12]}  Kb3 {[%clk 0:00:04]} 44. Rf4 {[%clk 0:00:12]}  Rg7 {[%clk 0:00:05]} 45. g4 {[%clk 0:00:13]}  a6 {[%clk 0:00:03]} 46. bxa6 {[%clk 0:00:13]}  Ra7 {[%clk 0:00:04]} 47. g5 {[%clk 0:00:13]}  hxg5 {[%clk 0:00:03]} 48. hxg5 {[%clk 0:00:14]}  Rxa6 {[%clk 0:00:04]} 49. Kg4 {[%clk 0:00:14]}  Ra8 {[%clk 0:00:01]} 50. g6 {[%clk 0:00:14]}  Rg8 {[%clk 0:00:02]} 51. Kg5 {[%clk 0:00:15]} 1-0


[Site "https://www.chess.com"]

[Event "Titled Tuesday Blitz March 15 Early 2022"]
[White "Bortnyk, Olexandr"]
[Black "Barp, Alberto"]
[WhiteFideId "14120828"]
[BlackFideId "872555"]
[WhiteElo "2723"]
[BlackElo "2229"]
[Result "1-0"]
[Round "06"]
[TimeControl "180+1"]
[Date "2022.03.15"]
[WhiteClock "0:01:04"]
[BlackClock "0:00:16"]

1. e4 {[%clk 0:02:57]}  c6 {[%clk 0:02:49]} 2. c4 {[%clk 0:02:56]}  d5 {[%clk 0:02:50]} 3. cxd5 {[%clk 0:02:57]}  cxd5 {[%clk 0:02:48]} 4. exd5 {[%clk 0:02:58]}  Nf6 {[%clk 0:02:47]} 5. Qa4+ {[%clk 0:02:58]}  Nbd7 {[%clk 0:02:47]} 6. Nc3 {[%clk 0:02:58]}  a6 {[%clk 0:02:46]} 7. Nf3 {[%clk 0:02:48]}  Rb8 {[%clk 0:02:45]} 8. d4 {[%clk 0:02:43]}  b5 {[%clk 0:02:34]} 9. Qb3 {[%clk 0:02:44]}  Bb7 {[%clk 0:02:22]} 10. Bf4 {[%clk 0:02:41]}  Rc8 {[%clk 0:02:19]} 11. a4 {[%clk 0:02:40]}  b4 {[%clk 0:01:51]} 12. Qxb4 {[%clk 0:02:30]}  Bxd5 {[%clk 0:01:26]} 13. Bxa6 {[%clk 0:02:28]}  e5 {[%clk 0:01:21]} 14. Qb5 {[%clk 0:02:28]}  Bc4 {[%clk 0:01:13]} 15. dxe5 {[%clk 0:02:05]}  Bxb5 {[%clk 0:01:09]} 16. Bxb5 {[%clk 0:02:06]}  Bb4 {[%clk 0:01:02]} 17. exf6 {[%clk 0:01:59]}  O-O {[%clk 0:01:01]} 18. O-O {[%clk 0:01:33]}  Bxc3 {[%clk 0:00:51]} 19. bxc3 {[%clk 0:01:30]}  Nxf6 {[%clk 0:00:45]} 20. c4 {[%clk 0:01:24]}  Ne4 {[%clk 0:00:40]} 21. a5 {[%clk 0:01:19]}  Nc3 {[%clk 0:00:38]} 22. Be5 {[%clk 0:01:14]}  Nxb5 {[%clk 0:00:35]} 23. cxb5 {[%clk 0:01:15]}  Qd5 {[%clk 0:00:25]} 24. b6 {[%clk 0:01:12]}  Ra8 {[%clk 0:00:18]} 25. a6 {[%clk 0:01:10]}  Qb5 {[%clk 0:00:16]} 26. Rfb1 {[%clk 0:01:05]}  Qc6 {[%clk 0:00:15]} 27. b7 {[%clk 0:01:03]}  Rxa6 {[%clk 0:00:15]} 28. Rxa6 {[%clk 0:01:03]}  Qxa6 {[%clk 0:00:16]} 29. b8=Q {[%clk 0:01:04]} 1-0


[Site "https://www.chess.com"]

[Event "Titled Tuesday Blitz March 15 Early 2022"]
[White "Bryakin, Mikhail"]
[Black "Guseva, Marina"]
[WhiteFideId "4165314"]
[BlackFideId "4149351"]
[WhiteElo "2417"]
[BlackElo "2160"]
[Result "1/2-1/2"]
[Round "06"]
[TimeControl "180+1"]
[Date "2022.03.15"]
[WhiteClock "0:01:08"]
[BlackClock "0:00:09"]

1. e4 {[%clk 0:02:59]}  c5 {[%clk 0:02:59]} 2. Nc3 {[%clk 0:03:00]}  d6 {[%clk 0:02:58]} 3. f4 {[%clk 0:03:00]}  g6 {[%clk 0:02:55]} 4. Nf3 {[%clk 0:03:01]}  Bg7 {[%clk 0:02:55]} 5. Bb5+ {[%clk 0:03:01]}  Bd7 {[%clk 0:02:52]} 6. a4 {[%clk 0:03:00]}  e6 {[%clk 0:02:48]} 7. O-O {[%clk 0:03:00]}  Ne7 {[%clk 0:02:44]} 8. d3 {[%clk 0:02:59]}  O-O {[%clk 0:02:42]} 9. Kh1 {[%clk 0:02:58]}  a6 {[%clk 0:02:39]} 10. Bxd7 {[%clk 0:02:58]}  Qxd7 {[%clk 0:02:38]} 11. a5 {[%clk 0:02:55]}  Nbc6 {[%clk 0:02:37]} 12. Na4 {[%clk 0:02:55]}  Qc7 {[%clk 0:02:36]} 13. Nb6 {[%clk 0:02:54]}  Rad8 {[%clk 0:02:35]} 14. Qe1 {[%clk 0:02:45]}  Nd4 {[%clk 0:02:32]} 15. Nxd4 {[%clk 0:02:43]}  cxd4 {[%clk 0:02:32]} 16. Rf2 {[%clk 0:02:42]}  Rfe8 {[%clk 0:01:55]} 17. Ra4 {[%clk 0:02:38]}  f5 {[%clk 0:01:39]} 18. Rc4 {[%clk 0:02:37]}  Nc6 {[%clk 0:01:37]} 19. Bd2 {[%clk 0:02:33]}  Qf7 {[%clk 0:01:35]} 20. b3 {[%clk 0:02:29]}  d5 {[%clk 0:01:32]} 21. Ra4 {[%clk 0:02:27]}  dxe4 {[%clk 0:01:29]} 22. dxe4 {[%clk 0:02:28]}  e5 {[%clk 0:01:27]} 23. exf5 {[%clk 0:02:24]}  e4 {[%clk 0:01:26]} 24. fxg6 {[%clk 0:02:24]}  hxg6 {[%clk 0:01:21]} 25. Bc1 {[%clk 0:02:23]}  e3 {[%clk 0:01:17]} 26. Rf3 {[%clk 0:02:23]}  Qf5 {[%clk 0:00:56]} 27. Ra2 {[%clk 0:02:15]}  e2 {[%clk 0:00:52]} 28. Bd2 {[%clk 0:02:07]}  d3 {[%clk 0:00:50]} 29. Rxd3 {[%clk 0:02:06]}  Rxd3 {[%clk 0:00:49]} 30. cxd3 {[%clk 0:02:07]}  Qxd3 {[%clk 0:00:48]} 31. h3 {[%clk 0:01:41]}  Nd4 {[%clk 0:00:47]} 32. Kh2 {[%clk 0:01:35]}  Nc2 {[%clk 0:00:36]} 33. Qc1 {[%clk 0:01:34]}  e1=Q {[%clk 0:00:27]} 34. Bxe1 {[%clk 0:01:35]}  Nxe1 {[%clk 0:00:26]} 35. Qc4+ {[%clk 0:01:28]}  Qxc4 {[%clk 0:00:24]} 36. Nxc4 {[%clk 0:01:29]}  Nd3 {[%clk 0:00:21]} 37. Nd6 {[%clk 0:01:28]}  Re7 {[%clk 0:00:20]} 38. g3 {[%clk 0:01:28]}  Nb4 {[%clk 0:00:20]} 39. Ra4 {[%clk 0:01:23]}  Bc3 {[%clk 0:00:18]} 40. h4 {[%clk 0:01:20]}  Re2+ {[%clk 0:00:18]} 41. Kh3 {[%clk 0:01:21]}  Kg7 {[%clk 0:00:18]} 42. Nxb7 {[%clk 0:01:21]}  Nd3 {[%clk 0:00:17]} 43. Rc4 {[%clk 0:01:19]}  Nf2+ {[%clk 0:00:15]} 44. Kg2 {[%clk 0:01:18]}  Nd1+ {[%clk 0:00:15]} 45. Kf3 {[%clk 0:01:16]}  Re3+ {[%clk 0:00:14]} 46. Kg2 {[%clk 0:01:17]}  Re2+ {[%clk 0:00:13]} 47. Kg1 {[%clk 0:01:07]}  Re1+ {[%clk 0:00:11]} 48. Kh2 {[%clk 0:01:07]}  Re2+ {[%clk 0:00:11]} 49. Kh3 {[%clk 0:01:07]}  Nf2+ {[%clk 0:00:09]} 50. Kg2 {[%clk 0:01:08]}  Nd1+ {[%clk 0:00:09]} 1/2-1/2


[Site "https://www.chess.com"]